bitfinex-derivatives/quotes_ETHF0:USTF0_20251103
["timestamp","ask_amount","ask_price","bid_price","bid_amount"]
[1762167862285,8.0,3701.8,3701.7,9.47e-06]
[1762167862588,0.48635,3701.9,3701.7,9.47e-06]
[1762167863580,8.0,3701.8,3701.7,9.47e-06]
[1762167863783,14.7536,3701.8,3701.7,9.47e-06]
[1762167864783,0.48659,3700.0,3699.8,3.91065173]
[1762167864984,0.48661,3699.8,3699.7,0.02702958]
[1762167865590,3.2078,3700.1,3699.7,0.02702958]
[1762167865892,0.4866,3699.9,3699.7,0.02956456]
[1762167866284,16.2526,3699.9,3699.7,0.02956456]
[1762167866482,1.4958,3699.9,3699.7,0.02956456]
[1762167866684,0.4866,3699.9,3699.7,0.02956456]
[1762167867091,1.8311,3699.9,3699.7,0.02956456]
[1762167867487,1.21658,3699.7,3698.5,0.70285173]
[1762167867680,1.21658,3699.7,3698.1,0.70285173]
[1762167867681,0.48676,3698.7,3698.1,0.70285173]
[1762167867886,3.2078,3699.3,3698.0,3.2078]
[1762167868087,0.48676,3698.7,3698.0,3.2078]
[1762167868293,0.48675,3698.8,3698.0,3.2078]
[1762167868488,0.4868,3698.4,3698.0,3.21127189]
[1762167868693,0.48683,3698.2,3698.0,3.21127189]
[1762167868890,3.2078,3698.9,3698.0,3.21127189]
[1762167869094,0.48679,3698.5,3698.0,3.21127189]
[1762167869290,0.4868,3698.4,3698.0,3.21127189]
[1762167869495,0.48683,3698.1,3698.0,0.00347189]
[1762167870589,1.21671,3699.3,3698.0,0.00347189]
[1762167870590,3.2078,3698.9,3698.1,1.4258]
[1762167870897,3.69439,3700.0,3698.5,3.2078]
[1762167871097,3.69439,3700.0,3698.3,0.4868]
[1762167871098,3.2078,3700.0,3699.2,3.2078]
[1762167871303,1.3183,3700.8,3699.6,3.2078]
[1762167871592,0.48648,3700.8,3699.9,4.6336]
[1762167871801,0.48648,3700.8,3699.9,17.2436]
[1762167872191,3.2078,3700.9,3699.9,17.2436]
[1762167872591,0.48651,3700.6,3699.9,17.2436]
[1762167872786,3.2078,3700.6,3699.9,12.61]
[1762167873000,3.69432,3700.6,3699.9,12.61]
[1762167873296,0.48647,3700.9,3699.9,14.0358]
[1762167873496,3.2078,3701.1,3699.9,14.0358]
[1762167873698,0.48646,3701.0,3699.9,14.0358]
[1762167874002,0.48647,3700.9,3700.3,3.2078]
[1762167874192,0.48646,3701.0,3700.3,3.2078]
[1762167874498,0.48643,3701.2,3700.3,3.2078]
[1762167874687,0.00254107,3701.2,3700.3,3.2078]
[1762167874888,0.00254107,3701.2,3700.8,3.2078]
[1762167875092,0.00254107,3701.2,3700.8,3.21035311]
[1762167876097,0.48644,3701.1,3700.8,3.21035311]
[1762167876400,0.48646,3701.0,3700.8,3.21035311]
[1762167876590,0.00254107,3701.2,3700.8,3.21035311]
[1762167876796,0.48644,3701.1,3700.8,3.21035311]
[1762167876998,0.00254107,3701.2,3700.8,4.63615311]
[1762167881402,0.48646,3701.0,3700.8,3.21035311]
[1762167882002,0.48644,3701.1,3700.8,3.21035311]
[1762167882202,0.48645,3701.0,3700.8,3.21035311]
[1762167883101,0.00254107,3701.2,3700.8,3.21035311]
[1762167883302,0.48644,3701.1,3700.8,3.21035311]
[1762167883701,0.00254107,3701.2,3700.8,3.99315311]
[1762167883905,0.48644,3701.1,3700.8,3.99315311]
[1762167884206,0.00254107,3701.2,3700.8,5.30970484]
[1762167884505,0.00254107,3701.2,3700.8,4.60685311]
[1762167885202,0.48646,3701.0,3700.8,4.60685311]
[1762167885403,0.48897107,3701.2,3700.8,4.60685311]
[1762167885606,0.48644,3701.1,3700.8,4.60685311]
[1762167885814,0.48897107,3701.2,3700.8,4.60685311]
[1762167886209,0.48644,3701.1,3700.8,4.60685311]
[1762167886509,0.00254107,3701.2,3700.8,4.60685311]
[1762167886909,0.00254107,3701.2,3700.8,5.30970484]
[1762167888114,0.00254107,3701.2,3700.9,0.70285173]
[1762167888806,0.48897107,3701.2,3700.9,0.70285173]
[1762167889008,0.48645,3701.0,3700.8,5.30970484]
[1762167889208,0.48647,3700.9,3700.8,3.21035311]
[1762167889505,0.48647,3700.9,3700.8,0.00255311]
[1762167889506,2.76467,3700.9,3700.8,0.00255311]
[1762167889709,0.48647,3700.9,3700.8,0.00255311]
[1762167891011,0.00254107,3701.2,3700.8,3.68415311]
[1762167891313,0.48897107,3701.2,3701.0,2.2851]
[1762167891513,0.48647,3700.9,3700.8,0.00255311]
[1762167892211,2.76467,3700.9,3700.8,0.00255311]
[1762167893308,15.24167,3700.9,3700.8,0.00255311]
[1762167893510,15.24167,3700.9,3699.8,1.42109545]
[1762167893511,0.48659,3700.0,3699.9,0.70285173]
[1762167893712,0.4866,3699.9,3699.8,3.2078]
[1762167894509,0.4866,3699.9,3699.8,3.21114279]
[1762167895916,0.48651,3700.6,3699.8,3.21114279]
[1762167896107,0.48651,3700.6,3700.3,3.2078]
[1762167896308,0.48649,3700.7,3700.3,3.2078]
[1762167896506,0.48651,3700.6,3700.3,3.932085]
[1762167896709,0.48653,3700.4,3700.3,0.724285]
[1762167896906,3.2078,3700.9,3700.1,0.724285]
[1762167897110,0.48653,3700.4,3700.3,3.2078]
[1762167898415,3.2078,3700.9,3700.3,3.932085]
[1762167898822,0.48645,3701.0,3700.8,0.724285]
[1762167899120,0.48647,3700.9,3700.7,4.15519697]
[1762167899323,0.48648,3700.8,3700.7,4.15519697]
[1762167900321,0.48647,3700.9,3700.7,3.2078]
[1762167900513,0.48648,3700.8,3700.7,3.2078]
[1762167900709,0.00254107,3701.2,3700.7,3.2078]
[1762167900914,0.48644,3701.1,3701.0,0.7267897]
[1762167901111,0.48645,3701.0,3700.9,0.96905293]
[1762167901517,0.48644,3701.1,3701.0,2.2851]
[1762167901717,0.00254107,3701.2,3701.1,2.2851]
[1762167901913,0.00254107,3701.2,3701.1,5.4929]
[1762167903319,0.00254107,3701.2,3701.1,3.2078]
[1762167903618,0.48897107,3701.2,3701.1,4.66244445]
[1762167903825,0.48897107,3701.2,3701.1,3.2078]
[1762167905426,0.48897107,3701.2,3701.0,1.45464445]
[1762167905427,2.2782,3701.0,3700.9,0.96988984]
[1762167905624,2.76465,3701.0,3700.9,0.15357833]
[1762167905815,0.48652,3700.5,3700.4,0.96988984]
[1762167906018,0.48652,3700.5,3699.8,3.21114279]
[1762167906019,2.2782,3700.2,3700.1,0.96988984]
[1762167906219,2.76479,3700.0,3699.9,0.96988984]
[1762167906419,3.2078,3700.3,3699.8,0.00334279]
[1762167906420,2.7648,3699.9,3699.8,0.97323263]
[1762167908122,2.2782,3699.9,3699.8,0.97323263]
[1762167908327,2.2782,3699.9,3699.8,0.00334279]
[1762167910221,4.61056545,3702.2,3701.1,2.2851]
[1762167910426,0.4864,3701.4,3701.1,5.4929]
[1762167910825,1.21588,3701.9,3701.1,2.2851]
[1762167911125,2.76464,3701.1,3701.0,0.9688473]
[1762167911426,0.48648,3700.8,3700.7,4.1766473]
[1762167912522,3.2078,3701.3,3700.7,4.1766473]
[1762167912728,0.48897107,3701.2,3701.1,3.2078]
[1762167913223,2.74007107,3701.2,3701.1,3.2078]
[1762167913426,4.07578,3700.8,3700.7,0.9688473]
[1762167913825,0.48649,3700.7,3700.6,0.9688473]
[1762167914127,0.48651,3700.6,3700.5,0.9688473]
[1762167914325,0.48651,3700.6,3700.4,0.9688473]
[1762167914528,0.48652,3700.5,3700.4,0.9688473]
[1762167914720,0.4865,3700.7,3700.4,0.9688473]
[1762167914927,0.48651,3700.6,3700.5,0.9688473]
[1762167915229,0.48652,3700.5,3700.2,1.45342991]
[1762167915416,1.21614,3701.0,3700.2,1.45342991]
[1762167915622,0.00254107,3701.2,3700.2,1.45342991]
[1762167915623,0.48655,3700.3,3700.2,1.45342991]
[1762167915826,2.73766,3700.2,3700.1,13.94042991]
[1762167916025,2.73766,3700.2,3700.1,1.45342991]
[1762167916227,2.2511,3700.2,3700.1,1.45342991]
[1762167916423,0.48655,3700.3,3700.1,1.45342991]
[1762167916630,0.48656,3700.2,3700.1,1.45342991]
[1762167916931,3.2078,3700.5,3700.1,1.45342991]
[1762167916932,1.3382,3700.8,3700.1,3.2078]
[1762167917131,2.73761,3700.6,3700.5,0.96932215]
[1762167917525,2.73762,3700.5,3700.4,0.96932215]
[1762167917732,2.2511,3700.5,3700.4,0.96951409]
[1762167917932,0.48654,3700.4,3700.2,1.45398323]
[1762167918128,0.00254107,3701.2,3700.3,1.45398323]
[1762167918435,0.48649,3700.7,3700.6,0.96960192]
[1762167918630,0.00254107,3701.2,3700.6,0.96960192]
[1762167918831,1.21611,3701.1,3700.6,0.96960192]
[1762167919030,0.00254107,3701.2,3700.6,0.96960192]
[1762167919529,0.48649,3700.7,3700.6,0.96960192]
[1762167920125,2.73759,3700.7,3700.6,0.96960192]
[1762167920334,2.73759,3700.7,3700.4,0.96960192]
[1762167920335,2.2511,3700.5,3700.4,0.96960192]
[1762167920733,2.73762,3700.5,3700.4,0.96960192]
[1762167921033,2.73762,3700.5,3699.5,1.91810899]
[1762167921034,1.6378,3699.6,3699.5,1.91810899]
[1762167921233,0.4867,3699.1,3699.0,2.29550186]
[1762167921536,0.48677,3698.6,3698.4,1.3252]
[1762167921937,0.48676,3698.8,3698.4,1.3252]
[1762167922136,0.48873016,3698.8,3698.4,1.32715333]
[1762167922330,0.48676,3698.7,3698.4,1.32715333]
[1762167922532,0.48677,3698.7,3698.4,1.32715333]
[1762167922727,0.00197016,3698.8,3698.4,1.32715333]
[1762167922941,0.00197016,3698.8,3698.7,2.2539]
[1762167923135,0.48871016,3698.8,3698.7,2.2539]
[1762167923434,0.00197016,3698.8,3698.4,1.32715333]
[1762167923829,0.48677,3698.6,3698.4,1.32715333]
[1762167924035,0.48678,3698.5,3698.4,1.32715333]
[1762167924537,0.00197016,3698.8,3698.7,2.2539]
[1762167925037,0.00197016,3698.8,3698.7,5.4617]
[1762167926650,0.00197016,3698.8,3698.4,1.32715333]
[1762167926939,0.48677,3698.6,3698.4,1.32715333]
[1762167927443,0.00197016,3698.8,3698.4,3.58295333]
[1762167928142,0.48678,3698.6,3698.5,2.2558]
[1762167928335,0.48678,3698.6,3698.4,1.32715333]
[1762167928336,0.48678,3698.5,3698.4,1.32715333]
[1762167929438,0.00197016,3698.8,3698.6,2.2558]
[1762167929640,0.48871016,3698.8,3698.7,2.2558]
[1762167929834,0.48678,3698.5,3698.4,1.32715333]
[1762167930230,0.48678,3698.5,3698.4,0.00195333]
[1762167930429,2.13668,3698.5,3698.4,0.00195333]
[1762167930841,10.13668,3698.5,3698.4,0.00195333]
[1762167931740,2.13668,3698.5,3698.4,0.00195333]
[1762167933233,0.48689,3697.7,3697.6,1.3965]
[1762167934243,0.48689,3697.7,3697.6,0.00229658]
[1762167934439,2.13479,3697.7,3697.6,0.00229658]
[1762167934840,0.48689,3697.7,3697.6,0.00229658]
[1762167935843,0.48689,3697.7,3697.6,2.23839658]
[1762167936043,3.2078,3698.4,3697.6,5.44619658]
[1762167936241,0.48678,3698.6,3698.3,2.2361]
[1762167936442,0.00197016,3698.8,3698.3,2.2361]
[1762167936643,0.48871016,3698.8,3698.3,2.2361]
[1762167936842,0.48676,3698.7,3698.6,2.2361]
[1762167938043,0.00197016,3698.8,3698.2,2.2361]
[1762167938554,0.48679,3698.5,3698.4,2.2361]
[1762167940144,0.48676,3698.7,3698.4,2.2361]
[1762167940348,0.48677,3698.6,3698.5,2.2361]
[1762167940747,0.48871016,3698.8,3698.7,2.2361]
[1762167940953,0.48682,3698.2,3698.1,1.4522]
[1762167941347,0.48689,3697.7,3697.6,0.00229658]
[1762167943357,2.13479,3697.7,3697.6,0.00229658]
[1762167943656,0.48689,3697.7,3697.6,0.00229658]
[1762167945150,2.12609,3697.7,3697.6,0.00229658]
[1762167947348,2.12609,3697.7,3696.0,2.77375797]
[1762167947349,1.21743,3697.1,3696.1,3.2078]
[1762167947550,0.4871,3696.1,3696.0,1.3252]
[1762167947857,0.48714,3695.8,3695.3,7.0138]
[1762167948245,2.43524,3696.5,3695.3,4.66]
[1762167948448,0.48719,3695.4,3695.3,4.6634009]
[1762167948646,3.2078,3696.1,3695.3,7.0172009]
[1762167948852,0.48717,3695.6,3695.4,2.3538]
[1762167949247,0.48719,3695.4,3695.3,4.6634009]
[1762167949849,1.21777,3696.1,3695.3,4.6634009]
[1762167950152,0.48718,3695.5,3695.3,4.6634009]
[1762167950545,7.25198,3695.5,3695.3,3.2112009]
[1762167950752,1.637,3695.4,3695.3,0.0034009]
[1762167950953,3.69498,3695.5,3695.3,0.0034009]
[1762167951252,0.48717,3695.6,3695.3,1.3523009]
[1762167951460,3.2078,3695.9,3695.3,1.3523009]
[1762167951755,3.2078,3696.0,3695.3,1.3523009]
[1762167951959,0.48714,3695.8,3695.3,1.3523009]
[1762167952149,0.48715,3695.7,3695.3,1.3523009]
[1762167952854,0.48714,3695.8,3695.5,2.3538]
[1762167953152,0.48715,3695.7,3695.5,2.3538]
[1762167953858,3.2078,3696.0,3695.5,2.3538]
[1762167954156,3.2078,3696.0,3695.3,1.3523009]
[1762167954356,3.2078,3696.2,3695.5,2.3367]
[1762167954551,0.48715,3695.7,3695.5,2.3367]
[1762167955053,0.48713,3695.9,3695.8,2.3367]
[1762167955254,3.2078,3696.2,3696.1,2.3367]
[1762167955653,3.2078,3696.2,3695.3,1.3523009]
[1762167956154,0.48718,3695.5,3695.3,1.3523009]
[1762167958255,0.48716,3695.7,3695.3,1.3523009]
[1762167958559,0.48718,3695.5,3695.4,2.3367]
[1762167958749,3.2078,3696.2,3696.0,1.4458]
[1762167958954,0.4871,3696.1,3696.0,3.7825]
[1762167959154,0.00242026,3696.5,3696.0,3.7825]
[1762167959355,0.48707,3696.4,3696.3,2.3367]
[1762167959749,0.00242026,3696.5,3696.3,2.3367]
[1762167959953,0.48946026,3696.5,3696.4,2.3367]
[1762167960354,0.00242026,3696.5,3696.4,2.3367]
[1762167960654,0.48946026,3696.5,3696.4,2.3367]
[1762167960860,0.48708,3696.2,3696.1,3.2078]
[1762167961062,0.48706,3696.4,3696.3,2.3367]
[1762167961658,0.4871,3696.1,3696.0,3.7825]
[1762167962560,0.48707,3696.3,3696.0,3.7825]
[1762167962762,0.48709,3696.2,3696.1,2.3367]
[1762167963558,0.00242026,3696.5,3696.1,2.3367]
[1762167963764,0.4871,3696.1,3696.0,1.4458]
[1762167964060,0.48714,3695.8,3695.7,2.3367]
[1762167964253,3.2078,3696.2,3695.7,2.3367]
[1762167964459,3.2078,3696.2,3696.1,2.3367]
[1762167964659,3.69488,3696.2,3696.1,2.3367]
[1762167964855,0.00242026,3696.5,3696.1,5.5445]
[1762167965063,0.00242026,3696.5,3696.4,2.3367]
[1762167965265,0.4871,3696.1,3696.0,1.4458]
[1762167965869,0.4871,3696.1,3696.0,3.7825]
[1762167966166,0.00242026,3696.5,3696.0,3.7825]
[1762167966466,0.48947026,3696.5,3696.2,2.3367]
[1762167966666,0.00242026,3696.5,3696.4,2.3367]
[1762167967861,2.026e-05,3696.5,3696.4,2.3367]
[1762167968068,0.48694,3697.3,3697.2,3.7825]
[1762167969068,0.48910896,3697.3,3697.2,3.7825]
[1762167969465,0.00216896,3697.3,3697.2,3.7825]
[1762167969669,0.48910896,3697.3,3697.2,3.7825]
[1762167970168,0.48702,3696.7,3696.6,1.4458]
[1762167970569,0.48702,3696.7,3695.7,0.48715]
[1762167970570,0.4871,3696.1,3695.7,3.2078]
[1762167970964,0.48708,3696.3,3696.2,2.3367]
[1762167971568,3.2078,3696.9,3696.2,2.3367]
[1762167971768,0.4871,3696.1,3695.8,12.246]
[1762167971968,0.4871,3696.1,3695.7,3.2078]
[1762167972172,0.4871,3696.1,3695.7,15.4468]
[1762167972673,0.48718,3695.5,3695.4,1.4458]
[1762167973170,3.2078,3696.1,3695.4,1.4458]
[1762167973474,0.74292209,3696.0,3695.9,2.3491]
[1762167973673,0.48712,3696.0,3695.9,2.3491]
[1762167973971,0.48712,3696.0,3695.4,1.4458]
[1762167973972,0.25580339,3696.0,3695.4,1.4458]
[1762167974169,0.48715,3695.7,3695.5,2.3491]
[1762167974369,0.48715,3695.7,3695.6,2.3491]
[1762167974574,1.21765,3696.4,3696.0,1.3209]
[1762167974775,0.4871,3696.1,3696.0,1.3209]
[1762167974969,1.36644399,3696.1,3696.0,1.3209]
[1762167975169,0.74306786,3696.1,3696.0,1.3209]
[1762167975369,1.36685068,3696.1,3696.0,1.3209]
[1762167975570,0.48717,3695.6,3695.4,1.4458]
[1762167975777,0.48718,3695.5,3695.4,1.4458]
[1762167976172,0.48718,3695.5,3695.4,3.7949]
[1762167977473,3.2078,3696.2,3696.1,2.3491]
[1762167977675,3.95105974,3696.2,3696.1,2.3491]
[1762167977875,4.57533014,3696.2,3696.1,2.3491]
[1762167978279,3.95105974,3696.2,3696.1,2.3491]
[1762167978578,0.74324974,3696.2,3696.1,2.3491]
[1762167978782,3.2078,3696.6,3696.1,2.3491]
[1762167978984,0.88047154,3696.5,3696.1,2.3491]
[1762167979181,0.48706,3696.4,3696.3,2.3491]
[1762167982387,3.2078,3697.0,3696.3,2.3491]
[1762167982584,0.88100782,3696.9,3696.6,1.3209]
[1762167982785,1.36801782,3696.8,3696.7,2.3491]
[1762167983289,0.74335626,3696.8,3696.7,2.3491]
[1762167983684,0.74335626,3696.8,3696.6,1.3209]
[1762167983685,0.48702,3696.7,3696.6,1.3209]
[1762167983889,0.48702,3696.7,3696.0,1.3209]
[1762167983890,0.4871,3696.1,3696.0,1.3209]
[1762167984385,3.2078,3696.2,3696.0,1.3209]
[1762167984592,3.69488,3696.2,3696.1,2.3491]
[1762167985481,3.2078,3696.6,3696.1,2.3491]
[1762167985686,0.74342359,3696.5,3696.4,2.2427]
[1762167985893,0.48705,3696.5,3696.4,2.2427]
[1762167986989,3.69483,3696.6,3696.5,2.2427]
[1762167988989,3.69478,3697.0,3696.9,2.2427]
[1762167989189,0.48698,3697.0,3696.9,2.2427]
[1762167990395,0.48702,3696.7,3696.6,3.6408]
[1762167990688,0.48698,3697.0,3696.9,2.2917]
[1762167991386,0.48702,3696.7,3696.6,3.6408]
[1762167991995,3.2078,3697.0,3696.6,3.6408]
[1762167992300,0.48702,3696.7,3696.6,1.3491]
[1762167992596,0.48702,3696.7,3695.5,3.2078]
[1762167992597,1.21769,3696.3,3695.5,3.2078]
[1762167992900,3.2078,3696.5,3696.3,2.2917]
[1762167993096,3.2078,3696.9,3696.8,2.2917]
[1762167993294,0.48702,3696.7,3696.6,3.6419]
[1762167993495,0.76475469,3696.7,3696.6,1.3502]
[1762167994006,0.76475469,3696.7,3696.6,3.6419]
[1762167997397,0.27773469,3696.7,3696.6,3.6419]
[1762167997702,0.48699,3697.0,3696.9,2.2917]
[1762167997905,0.31464052,3697.0,3696.9,2.2917]
[1762167998201,0.48695,3697.2,3697.1,2.2917]
[1762167998396,0.31464909,3697.2,3697.1,2.2917]
[1762167998597,0.31464909,3697.2,3697.1,5.4995]
[1762167998793,3.69467,3697.8,3697.7,2.2917]
[1762167999596,0.48694,3697.4,3697.3,2.2917]
[1762167999999,0.48989395,3697.4,3697.3,2.2917]
[1762168000198,0.48988395,3697.4,3697.3,2.2917]
[1762168001403,0.00295395,3697.4,3697.3,2.2917]
[1762168002300,0.48988395,3697.4,3697.3,2.2917]
[1762168002903,0.00295395,3697.4,3697.3,2.2917]
[1762168003205,0.48988395,3697.4,3697.3,2.2917]
[1762168003401,0.00295395,3697.4,3697.3,2.2917]
[1762168003703,0.71762,3698.0,3697.9,2.2649]
[1762168004706,0.72075083,3698.0,3697.9,2.26759278]
[1762168005303,1.21695,3698.6,3698.5,2.2649]
[1762168005304,3.2078,3698.6,3698.5,2.2649]
[1762168005601,4.61056545,3699.5,3699.4,2.2649]
[1762168005807,3.2078,3699.5,3699.4,2.2649]
[1762168006403,0.48662,3699.8,3699.6,1.3519]
[1762168006807,0.48927659,3699.8,3699.6,1.3519]
[1762168010310,0.48927659,3699.8,3699.7,2.2649]
[1762168010712,0.7983746,3699.8,3699.7,2.2649]
[1762168010913,0.7983862,3699.8,3699.7,2.2649]
[1762168011419,0.00265659,3699.8,3699.7,2.2649]
[1762168012316,0.48657,3700.2,3700.1,2.2649]
[1762168012715,3.2078,3700.3,3700.2,3.6168]
[1762168013115,0.48653,3700.4,3700.3,2.2649]
[1762168013416,0.48875058,3700.4,3700.2,1.3519]
[1762168013617,2.47832,3699.7,3699.6,1.3519]
[1762168013812,0.4867,3699.1,3699.0,3.6168]
[1762168014819,0.48677,3698.6,3698.5,3.2078]
[1762168015024,0.48677,3698.6,3698.5,5.4727]
[1762168016619,1.21677,3699.1,3698.5,5.4727]
[1762168016822,1.21677,3699.1,3699.0,1.3519]
[1762168016823,0.4867,3699.1,3699.0,1.3519]
[1762168017021,0.79517883,3699.1,3699.0,1.3519]
[1762168017723,2.78687883,3699.1,3699.0,1.3519]
[1762168018125,0.79517883,3699.1,3699.0,3.6168]
[1762168018624,2.78687883,3699.1,3699.0,1.3519]
[1762168019125,0.79517883,3699.1,3699.0,1.3519]
[1762168020416,0.79517883,3699.1,3698.4,1.3519]
[1762168020417,2.30017883,3699.1,3698.4,1.3519]
[1762168020625,2.47848,3698.5,3698.4,1.3519]
[1762168020927,2.78695883,3698.5,3698.4,1.3519]
[1762168021530,0.48685,3698.0,3697.9,0.00269278]
[1762168021724,3.2078,3698.7,3697.9,2.26759278]
[1762168021725,1.21694,3698.6,3697.9,2.26759278]
[1762168021927,0.48685,3698.0,3697.9,2.26759278]
[1762168022432,0.48677,3698.6,3698.5,1.3519]
[1762168022619,3.2078,3699.5,3699.0,1.3519]
[1762168022822,0.4867,3699.1,3699.0,3.6168]
[1762168023024,0.79535883,3699.1,3699.0,3.6168]
[1762168023531,0.30865883,3699.1,3699.0,3.6168]
[1762168024529,0.79535883,3699.1,3699.0,3.6168]
[1762168024831,0.79535883,3699.1,3699.0,1.3519]
[1762168025223,0.30865883,3699.1,3699.0,3.6168]
[1762168025521,0.79535883,3699.1,3699.0,3.6168]
[1762168025823,0.30865883,3699.1,3699.0,3.6168]
[1762168026029,1.21641,3700.2,3699.9,2.2649]
[1762168026227,0.48658,3700.0,3699.9,2.2649]
[1762168026933,0.4867,3699.2,3699.0,4.5597]
[1762168027230,0.48677,3698.6,3698.5,4.5597]
[1762168027530,0.48677,3698.6,3698.5,3.6168]
[1762168027726,0.48677,3698.6,3698.0,2.2649]
[1762168027727,0.48685,3698.1,3698.0,2.2649]
[1762168028229,4.42481,3698.4,3697.8,1.3519]
[1762168028433,0.48685,3698.0,3697.8,1.3519]
[1762168028829,0.48685,3698.0,3697.9,2.26759278]
[1762168029229,3.2078,3698.9,3698.8,2.2649]
[1762168029527,1.13655935,3698.9,3698.8,2.2649]
[1762168030031,0.48673,3698.9,3698.8,2.2649]
[1762168031426,0.4867,3699.2,3698.8,2.2649]
[1762168031627,3.2078,3699.3,3699.2,2.3945]
[1762168031829,3.2078,3700.0,3699.3,2.3945]
[1762168032033,0.48667,3699.4,3699.3,2.3945]
[1762168032234,0.48666,3699.5,3699.4,2.3945]
[1762168032434,0.48662,3699.7,3699.6,3.7399]
[1762168032633,1.13714676,3699.7,3699.6,3.7399]
[1762168034033,0.48661,3699.8,3699.6,1.3454]
[1762168034229,3.2078,3700.0,3699.9,2.3945]
[1762168034432,0.00222058,3700.4,3700.3,2.3945]
[1762168034733,1.21601,3701.4,3700.3,2.3945]
[1762168034734,3.2078,3701.0,3700.9,2.3945]
[1762168034936,3.85902377,3701.0,3700.9,2.3945]
[1762168035231,3.2078,3701.8,3701.7,2.3945]
[1762168035648,3.21115542,3701.8,3701.7,2.39667615]
[1762168035942,3.2078,3702.2,3701.7,0.00217615]
[1762168036141,3.2078,3702.2,3702.1,2.3945]
[1762168036344,3.85858504,3702.2,3702.1,2.3945]
[1762168037047,3.86102702,3702.2,3702.1,2.3945]
[1762168037344,0.48635,3701.9,3701.7,0.00217615]
[1762168037540,3.21024198,3702.2,3701.8,2.3945]
[1762168037839,3.21024198,3702.2,3702.1,2.3945]
[1762168038042,3.52018154,3702.2,3702.1,2.3945]
[1762168039147,3.52018154,3702.2,3701.7,0.00217615]
[1762168039148,0.48623,3702.7,3702.6,2.3945]
[1762168039940,0.48626,3702.5,3702.4,3.2078]
[1762168040143,0.48844363,3702.5,3702.4,3.2078]
[1762168040541,1.21572,3702.3,3702.0,3.2078]
[1762168040744,2.67221,3702.1,3702.0,3.2078]
[1762168040941,0.48635,3701.8,3701.7,0.00217615]
[1762168041247,0.48635,3701.8,3701.7,2.39667615]
[1762168041547,0.48635,3701.8,3701.7,0.00217615]
[1762168041548,2.67225,3701.8,3701.7,0.00217615]
[1762168043052,0.48643,3701.2,3701.1,3.2078]
[1762168043349,1.21598,3701.5,3700.7,3.2078]
[1762168043350,1.21612,3701.1,3700.7,3.2078]
[1762168043545,4.42378,3701.5,3700.7,3.2078]
[1762168043844,0.48643,3701.2,3701.1,2.3945]
[1762168044051,0.48643,3701.2,3701.1,2.3964487]
[1762168044248,3.2078,3701.9,3701.1,2.3964487]
[1762168044448,0.48639,3701.5,3701.4,2.3945]
[1762168044744,0.48639,3701.5,3701.4,5.6023]
[1762168044947,2.57903,3702.3,3701.4,5.6023]
[1762168044948,2.57902,3702.3,3701.4,5.6023]
[1762168045249,0.48636,3701.7,3701.6,2.3945]
[1762168045450,0.48639,3701.5,3701.4,3.2078]
[1762168046348,0.48639,3701.5,3701.1,0.0019487]
[1762168046349,0.48643,3701.2,3701.1,0.0019487]
[1762168047053,0.48638,3701.6,3701.3,2.2408]
[1762168047245,0.48638,3701.6,3701.5,3.2078]
[1762168048449,0.48638,3701.6,3701.5,5.4486]
[1762168049848,0.48637,3701.6,3701.5,5.4486]
[1762168050350,3.2078,3703.4,3702.4,2.2408]
[1762168050646,0.48622,3702.8,3702.4,5.4486]
[1762168051052,0.48621,3702.9,3702.4,5.4486]
[1762168051446,0.4862,3702.9,3702.4,5.4486]
[1762168051652,0.48623,3702.7,3702.4,5.4486]
[1762168051852,0.48624,3702.6,3702.4,5.4486]
[1762168052157,0.48843363,3702.5,3702.4,5.4486]
[1762168052550,0.48631,3702.1,3702.0,6.8412]
[1762168052753,0.00218363,3702.5,3702.4,2.2232]
[1762168052951,0.00218363,3702.5,3702.4,5.431]
[1762168053151,4.42304,3703.8,3703.2,2.2232]
[1762168053352,0.48615,3703.4,3703.2,2.2232]
[1762168054250,0.48882135,3703.4,3703.2,2.2232]
[1762168054850,0.48618,3703.1,3703.0,4.6221]
[1762168055250,0.48618,3703.1,3703.0,3.2078]
[1762168056255,0.00267135,3703.4,3703.3,2.2232]
[1762168057954,3.2078,3704.3,3703.8,3.6375]
[1762168058355,0.48606,3704.0,3703.9,2.2232]
[1762168058556,0.48604,3704.2,3704.1,2.2232]
[1762168059066,2.70365988,3704.2,3704.1,0.00229478]
[1762168059357,2.96514382,3704.2,3704.1,0.00229478]
[1762168059558,3.60792856,3704.2,3704.1,0.00229478]
[1762168059763,0.48612,3703.5,3703.4,3.2078]
[1762168060863,0.48612,3703.5,3703.4,3.21065271]
[1762168061662,0.48612,3703.5,3703.4,0.00285271]
[1762168061863,6.17026883,3703.5,3703.4,0.00285271]
[1762168062061,6.81398518,3703.5,3703.4,0.00285271]
[1762168062363,0.48623,3702.7,3702.6,4.6221]
[1762168063061,0.48623,3702.7,3702.6,3.2078]
[1762168063366,0.74849077,3702.7,3702.6,3.21001085]
[1762168063566,3.70325225,3702.7,3702.6,3.21001085]
[1762168064164,1.39325225,3702.7,3702.6,3.21001085]
[1762168064464,1.39325225,3702.7,3702.6,0.00221085]
[1762168064856,3.70325225,3702.7,3702.6,0.00221085]
[1762168065564,0.90702225,3702.7,3702.6,2.33171085]
[1762168065760,0.90702225,3702.7,3702.6,5.53951085]
[1762168065960,0.48617,3703.2,3702.9,2.3295]
[1762168066155,1.13180887,3703.1,3703.0,6.9798]
[1762168066359,1.13180887,3703.1,3703.0,3.2078]
[1762168067062,0.48623,3702.7,3702.6,2.33171085]
[1762168067267,0.48622,3702.9,3702.8,2.3295]
[1762168067467,0.48618,3703.1,3703.0,3.772]
[1762168067767,1.13178814,3703.1,3703.0,3.772]
[1762168068068,0.64560814,3703.1,3703.0,6.9798]
[1762168068264,0.48613,3703.5,3703.4,2.3295]
[1762168068465,0.00311988,3704.2,3704.1,2.3295]
[1762168068767,2.79605,3704.1,3704.0,3.2078]
[1762168068959,3.68839716,3704.1,3704.0,3.2078]